bitfinex-derivatives/quotes_ETHF0:USTF0_20230106
["timestamp","ask_amount","ask_price","bid_price","bid_amount"]
[1672971265302,8.68348711,1249.8,1249.7,1.19672958]
[1672971265924,5.7078,1249.8,1249.7,1.19672958]
[1672971267732,2.5,1249.8,1249.7,1.19672958]
[1672971268039,5.7078,1249.8,1249.7,1.19672958]
[1672971268252,8.67966409,1249.8,1249.7,1.19672958]
[1672971268908,5.7078,1249.8,1249.7,1.19672958]
[1672971270036,8.67998985,1249.8,1249.7,1.19672958]
[1672971270240,5.7078,1249.8,1249.7,1.19672958]
[1672971273809,2.5,1249.8,1249.7,1.19672958]
[1672971274025,5.7078,1249.8,1249.7,1.19672958]
[1672971274435,8.68037186,1249.8,1249.7,1.19672958]
[1672971275183,5.7078,1249.8,1249.7,1.19672958]
[1672971275606,8.68033251,1249.8,1249.7,1.19672958]
[1672971276762,5.7078,1249.8,1249.7,1.19672958]
[1672971277500,8.68024267,1249.8,1249.7,1.19672958]
[1672971278859,6.18024267,1249.8,1249.7,2.3957194]
[1672971279068,8.68024267,1249.8,1249.7,2.3957194]
[1672971279281,6.18024267,1249.8,1249.7,2.3957194]
[1672971279502,8.68024267,1249.8,1249.7,2.3957194]
[1672971280123,5.47244267,1249.8,1249.7,2.3957194]
[1672971280560,2.97244267,1249.8,1249.7,2.3957194]
[1672971280863,5.47244267,1249.8,1249.7,2.3957194]
[1672971281180,5.47244267,1249.8,1249.7,1.19672958]
[1672971284019,5.47244267,1249.8,1249.7,2.3957194]
[1672971284232,2.97244267,1249.8,1249.7,2.3957194]
[1672971284444,5.47244267,1249.8,1249.7,2.3957194]
[1672971286229,2.97244267,1249.8,1249.7,2.3957194]
[1672971288534,2.97244267,1249.8,1249.7,4.19471501]
[1672971288856,2.97244267,1249.8,1249.7,6.20352519]
[1672971289275,2.97244267,1249.8,1249.7,7.40304504]
[1672971290227,2.97244267,1249.8,1249.7,6.20352519]
[1672971290433,2.97244267,1249.8,1249.7,4.19519864]
[1672971303266,2.97244267,1249.8,1249.7,2.99572519]
[1672971303688,2.97244267,1249.8,1249.7,4.1954377]
[1672971305051,2.97244267,1249.8,1249.7,2.99870812]
[1672971308305,2.97244267,1249.8,1249.7,1.79899561]
[1672971313247,2.97244267,1249.8,1249.7,2.99879147]
[1672971313869,2.97244267,1249.8,1249.7,4.19545283]
[1672971314074,2.97244267,1249.9,1249.7,6.3147453]
[1672971314290,2.97244267,1249.9,1249.8,6.69611116]
[1672971314291,5.47244267,1249.9,1249.8,6.69611116]
[1672971314608,2.97244267,1249.9,1249.8,4.29965394]
[1672971314816,2.97244267,1249.9,1249.8,6.69611116]
[1672971315237,2.97244267,1249.9,1249.8,4.29965394]
[1672971317548,2.97244267,1250.0,1249.8,9.90391116]
[1672971317753,2.97244267,1250.0,1249.9,2.99872926]
[1672971318914,2.97244267,1250.0,1249.9,1.19907532]
[1672971320840,2.97244267,1250.0,1249.9,2.99872926]
[1672971321018,2.97244267,1250.1,1250.0,2.5]
[1672971321228,5.47244267,1250.1,1250.0,2.5]
[1672971322273,2.5,1250.1,1249.9,1.19907532]
[1672971322593,2.97190929,1250.0,1249.9,1.19907532]
[1672971323114,5.47190929,1250.1,1249.9,1.19907532]
[1672971323529,2.97190929,1250.0,1249.9,1.19907532]
[1672971324171,5.47190929,1250.1,1249.9,1.19907532]
[1672971324592,2.97190929,1250.1,1249.9,1.19907532]
[1672971324803,2.97190929,1250.1,1249.9,2.99872926]
[1672971324804,5.47190929,1250.1,1249.9,2.99872926]
[1672971325014,5.47190929,1250.1,1249.9,1.19907532]
[1672971325948,2.97190929,1250.1,1250.0,2.5]
[1672971327547,5.47190929,1250.2,1250.0,3.69907532]
[1672971328071,2.97190929,1250.2,1250.0,3.69907532]
[1672971328273,2.97190929,1250.2,1250.0,5.49872926]
[1672971328904,2.97190929,1250.2,1250.0,3.69907532]
[1672971329442,5.47190929,1250.2,1250.0,3.69907532]
[1672971329960,2.97190929,1250.2,1250.0,3.69907532]
[1672971330594,5.47190929,1250.2,1250.0,3.69907532]
[1672971331210,5.47190929,1250.2,1250.0,2.5]
[1672971331429,16.55390929,1250.3,1250.0,5.49872926]
[1672971331642,2.97190929,1250.3,1250.0,5.49872926]
[1672971331843,5.47190929,1250.3,1250.0,5.49872926]
[1672971332581,2.97190929,1250.3,1250.2,2.5]
[1672971332792,5.47190929,1250.3,1250.2,2.5]
[1672971333422,5.47190929,1250.3,1250.1,3.2078]
[1672971337941,2.5,1250.2,1250.1,3.20466506]
[1672971339417,2.5,1250.2,1250.0,2.5]
[1672971342679,5.47190929,1250.3,1250.0,2.5]
[1672971342891,5.47190929,1250.3,1250.0,3.69907532]
[1672971346781,5.47190929,1250.3,1250.0,5.49872926]
[1672971347824,5.47190929,1250.3,1250.1,3.2078]
[1672971348145,5.47190929,1250.3,1250.2,2.5]
[1672971348778,2.97190929,1250.3,1250.2,2.5]
[1672971351298,2.97190929,1250.3,1250.1,4.40687532]
[1672971351515,2.97190929,1250.3,1250.2,2.5]
[1672971357084,6.08423545,1250.4,1250.2,2.5]
[1672971357298,2.9723488,1250.3,1250.1,4.40687532]
[1672971357502,2.97234737,1250.3,1250.1,4.40687532]
[1672971357709,2.5,1250.2,1250.1,6.20652926]
[1672971357956,2.5,1250.2,1250.1,4.40687532]
[1672971358345,5.47234737,1250.2,1250.1,4.40687532]
[1672971360237,2.97234737,1250.2,1250.1,4.40687532]
[1672971360881,2.97234737,1250.2,1250.1,6.20652926]
[1672971361109,2.97234737,1250.2,1250.1,4.40687532]
[1672971362162,2.97234737,1250.3,1250.1,5.00745394]
[1672971362353,2.97234737,1250.3,1250.2,1.19839714]
[1672971362556,2.97234737,1250.3,1250.2,3.69839714]
[1672971365600,2.97459423,1250.3,1250.2,3.69839714]
[1672971365807,2.97459423,1250.3,1250.2,5.49805108]
[1672971366137,2.97459423,1250.3,1250.2,3.69839714]
[1672971366972,6.08423545,1250.4,1250.2,3.69839714]
[1672971371597,6.08423545,1250.4,1250.2,5.49805108]
[1672971371808,6.08423545,1250.4,1250.2,3.69839714]
[1672971373492,2.97576676,1250.3,1250.2,5.49805108]
[1672971374020,6.08423545,1250.4,1250.2,5.49805108]
[1672971374893,6.08423545,1250.4,1250.2,3.69839714]
[1672971375597,6.08423545,1250.4,1250.2,1.19839714]
[1672971377386,2.97555763,1250.3,1250.2,5.49805108]
[1672971379279,2.97555763,1250.3,1250.2,2.99805108]
[1672971380115,2.97555763,1250.3,1250.2,5.49805108]
[1672971381063,2.5,1250.2,1250.0,12.77995622]
[1672971381285,2.97555763,1250.3,1250.1,11.88784039]
[1672971381585,2.97555763,1250.4,1250.1,10.47]
[1672971381788,2.97555763,1250.4,1250.2,2.5]
[1672971382209,2.97555763,1250.4,1250.2,5.7078]
[1672971383580,5.47555763,1250.4,1250.2,5.7078]
[1672971384005,2.97555763,1250.4,1250.2,5.7078]
[1672971387164,6.18335763,1250.5,1250.2,5.7078]
[1672971389371,2.97555763,1250.5,1250.2,5.7078]
[1672971395575,19.76535763,1250.6,1250.2,5.7078]
[1672971395774,6.18335763,1250.6,1250.2,5.7078]
[1672971396104,8.68335763,1250.6,1250.2,5.7078]
[1672971396626,6.18335763,1250.6,1250.2,5.7078]
[1672971397364,8.68335763,1250.6,1250.2,5.7078]
[1672971397675,2.97555763,1250.5,1250.2,5.7078]
[1672971398108,5.47555763,1250.5,1250.2,5.7078]
[1672971399991,2.5,1250.4,1250.2,5.7078]
[1672971400319,8.68335763,1250.4,1250.2,2.5]
[1672971401140,6.18335763,1250.4,1250.2,2.5]
[1672971403351,2.97555763,1250.4,1250.2,2.5]
[1672971403560,2.97555763,1250.5,1250.2,5.7078]
[1672971404190,2.97555763,1250.5,1250.2,13.6778]
[1672971404512,8.68335763,1250.6,1250.2,13.6778]
[1672971404719,6.18335763,1250.6,1250.2,16.67119144]
[1672971405141,8.68335763,1250.6,1250.2,16.67119144]
[1672971406196,5.47555763,1250.6,1250.2,13.46339144]
[1672971406407,8.68335763,1250.6,1250.3,3.2078]
[1672971406617,8.68335763,1250.6,1250.4,2.5]
[1672971410818,2.97555763,1250.5,1250.4,2.5]
[1672971411237,8.68335763,1250.6,1250.4,2.5]
[1672971412077,2.97555763,1250.5,1250.4,2.5]
[1672971414610,8.68335763,1250.6,1250.4,2.5]
[1672971414814,2.97555763,1250.5,1250.4,2.5]
[1672971417774,6.18335763,1250.6,1250.4,2.5]
[1672971420504,8.68335763,1250.6,1250.4,2.5]
[1672971420715,6.18335763,1250.6,1250.4,4.89467322]
[1672971421453,2.97555763,1250.6,1250.4,4.89467322]
[1672971422290,5.47555763,1250.6,1250.4,4.89467322]
[1672971422819,2.97555763,1250.5,1250.4,2.5]
[1672971424290,2.97555763,1250.5,1250.3,5.60247322]
[1672971424509,6.18335763,1250.5,1250.3,2.39467322]
[1672971425552,2.5,1250.4,1250.3,2.39467322]
[1672971425970,5.47555763,1250.4,1250.3,2.39467322]
[1672971426176,5.47555763,1250.4,1250.2,2.39467322]
[1672971426385,3.2078,1250.3,1250.2,2.39467322]
[1672971427018,6.18335763,1250.3,1250.2,2.39467322]
[1672971427544,3.2078,1250.3,1250.2,2.39467322]
[1672971428500,6.18335763,1250.3,1250.1,2.39467322]
[1672971428710,2.5,1250.2,1250.1,2.39467322]
[1672971433644,6.18335763,1250.3,1250.1,2.39467322]
[1672971433962,6.18335763,1250.3,1250.1,4.89467322]
[1672971434213,3.2078,1250.3,1250.1,4.89467322]
[1672971434594,2.5,1250.2,1250.1,4.89467322]
[1672971435742,2.5,1250.2,1250.0,7.88806466]
[1672971438917,2.5,1250.2,1250.0,4.89467322]
[1672971439111,6.18335763,1250.3,1250.1,2.5]
[1672971439322,3.2078,1250.3,1250.1,2.5]
[1672971439635,3.2078,1250.3,1250.1,4.89467322]
[1672971440051,2.97555763,1250.4,1250.1,4.89467322]
[1672971440369,8.68335763,1250.5,1250.1,12.51357561]
[1672971440584,8.68335763,1250.5,1250.2,2.39467322]
[1672971440790,8.68335763,1250.5,1250.3,2.5]
[1672971440994,8.68335763,1250.5,1250.3,4.29607679]
[1672971441211,5.47555763,1250.5,1250.3,4.29607679]
[1672971445517,2.97555763,1250.5,1250.3,4.29607679]
[1672971450462,2.97555763,1250.5,1250.3,2.5]
[1672971450984,6.18335763,1250.5,1250.3,2.5]
[1672971451220,2.5,1250.4,1250.3,2.49401766]
[1672971451815,6.18335763,1250.5,1250.3,2.49401766]
[1672971452032,2.97555763,1250.5,1250.3,2.49401766]
[1672971452262,6.18335763,1250.5,1250.3,4.29009445]
[1672971453185,6.18103149,1250.5,1250.3,4.29009445]
[1672971455610,2.97323149,1250.5,1250.3,4.29009445]
[1672971455814,6.18103149,1250.5,1250.3,4.29009445]
[1672971456975,6.18103149,1250.5,1250.3,6.68476767]
[1672971459073,2.97323149,1250.5,1250.3,6.68476767]
[1672971460226,2.97323149,1250.5,1250.4,1.79607679]
[1672971460544,3.2078,1250.6,1250.4,1.79607679]
[1672971460751,20.37403545,1250.8,1250.5,1.79607679]
[1672971460961,6.79203545,1250.8,1250.5,1.79607679]
[1672971461171,2.5,1250.7,1250.6,2.5]
[1672971461910,2.5,1250.7,1250.6,4.29607679]
[1672971462108,5.7078,1250.8,1250.6,4.29607679]
[1672971462322,5.7078,1250.8,1250.6,2.5]
[1672971463277,5.7078,1250.8,1250.6,4.29607679]
[1672971463685,3.2078,1250.8,1250.6,2.5]
[1672971463901,2.5,1250.9,1250.6,17.86855001]
[1672971464220,2.5,1250.9,1250.6,4.29607679]
[1672971464428,2.5,1250.9,1250.6,7.50387679]
[1672971465693,2.5,1250.9,1250.6,15.47387679]
[1672971465901,5.7078,1251.0,1250.6,17.86855001]
[1672971466124,3.2078,1251.0,1250.6,15.47387679]
[1672971466323,3.2078,1251.0,1250.8,7.97]
[1672971466530,3.2078,1251.0,1250.6,9.89855001]
[1672971466745,3.2078,1251.0,1250.8,2.5]
[1672971466746,2.5,1250.9,1250.8,2.5]
[1672971467590,2.5,1250.9,1250.6,15.47387679]
[1672971468742,2.5,1250.9,1250.6,13.6778]
[1672971470740,2.5,1250.9,1250.6,5.7078]
[1672971471586,5.7078,1250.9,1250.6,2.5]
[1672971473374,8.6721596,1250.9,1250.6,2.5]
[1672971473578,5.7078,1250.9,1250.6,2.5]
[1672971478211,5.7078,1250.9,1250.6,4.29607679]
[1672971478414,5.7078,1250.9,1250.6,2.5]
[1672971484939,2.5,1250.9,1250.6,2.5]
[1672971485146,5.7078,1250.9,1250.6,2.5]
[1672971485346,5.7078,1250.9,1250.6,10.47]
[1672971485669,3.2078,1250.9,1250.6,10.47]
[1672971486831,3.2078,1250.9,1250.6,12.26607679]
[1672971488935,9.8535596,1251.1,1250.6,12.26607679]
[1672971489556,9.8535596,1251.1,1250.6,15.47387679]
[1672971492084,2.5,1250.9,1250.6,15.47387679]
[1672971492295,2.5,1250.9,1250.6,17.86855001]
[1672971493452,2.5,1250.9,1250.6,14.66075001]
[1672971493770,2.5,1250.9,1250.6,17.86855001]
[1672971494188,2.5,1250.9,1250.7,1.79607679]
[1672971494505,2.5,1250.9,1250.8,2.5]
[1672971495861,2.5,1250.9,1250.7,1.79607679]
[1672971496830,2.5,1250.9,1250.6,17.86855001]
[1672971497025,5.4643596,1250.9,1250.6,15.47387679]
[1672971497757,8.6721596,1250.9,1250.6,12.26607679]
[1672971498172,8.6721596,1250.9,1250.7,1.79607679]
[1672971498382,8.6721596,1250.9,1250.8,2.5]
[1672971498804,8.6721596,1250.9,1250.7,1.79607679]
[1672971500280,2.9643596,1250.8,1250.7,1.79607679]
[1672971501965,2.9643596,1250.8,1250.7,2.9946833]
[1672971502278,2.9643596,1250.8,1250.7,1.79607679]
[1672971502487,9.29203545,1250.9,1250.7,1.19893899]
[1672971502699,21.42332177,1250.9,1250.7,1.19893899]
[1672971503011,2.5,1250.7,1250.6,2.88308295]
[1672971503216,8.68450113,1250.7,1250.6,1.68414396]
[1672971505646,8.68450113,1250.7,1250.6,1.198594]
[1672971507358,2.5,1250.6,1250.5,1.198594]
[1672971508164,5.47670113,1250.6,1250.5,1.198594]
[1672971508893,5.47670113,1250.6,1250.4,3.698594]
[1672971509110,5.47670113,1250.6,1250.5,1.198594]
[1672971509309,3.2078,1250.5,1250.4,3.698594]
[1672971509734,3.2078,1250.5,1250.4,1.198594]
[1672971523103,5.7078,1250.6,1250.4,1.198594]
[1672971527829,3.2078,1250.6,1250.4,1.198594]
[1672971529405,3.2078,1250.6,1250.5,1.198594]
[1672971530032,5.47670113,1250.7,1250.5,1.198594]
[1672971530246,8.68450113,1250.7,1250.5,1.198594]
[1672971530668,5.7078,1250.7,1250.5,1.198594]
[1672971530984,5.7078,1250.7,1250.5,3.698594]
[1672971531507,3.2078,1250.7,1250.5,3.698594]
[1672971531929,5.7078,1250.7,1250.5,3.698594]
[1672971532664,5.7078,1250.7,1250.6,1.198594]
[1672971534030,5.7078,1250.7,1250.5,3.698594]
[1672971534242,8.68450113,1250.7,1250.5,3.698594]
[1672971534555,5.47670113,1250.7,1250.5,3.698594]
[1672971535394,5.47670113,1250.7,1250.6,1.198594]
[1672971536556,8.68450113,1250.7,1250.6,1.198594]
[1672971536960,5.47670113,1250.7,1250.6,1.198594]
[1672971537282,6.18450113,1250.7,1250.6,1.198594]
[1672971537598,8.68450113,1250.7,1250.6,1.198594]
[1672971538865,6.18450113,1250.7,1250.6,1.198594]
[1672971542533,3.2078,1250.7,1250.6,1.198594]
[1672971542742,11.1778,1250.7,1250.6,1.198594]
[1672971542952,2.5,1250.6,1250.4,1.198594]
[1672971543171,6.18359887,1250.5,1250.4,1.198594]
[1672971543699,6.18359887,1250.5,1250.3,4.89467322]
[1672971543909,2.5,1250.4,1250.3,4.89467322]
[1672971544116,2.5,1250.4,1250.3,6.31227686]
[1672971546316,6.18359887,1250.5,1250.3,6.31227686]
[1672971546526,6.18359887,1250.5,1250.4,1.19862129]
[1672971546744,6.18359887,1250.5,1250.4,3.69862129]
[1672971546951,2.97579887,1250.5,1250.4,3.69862129]
[1672971547170,6.18359887,1250.5,1250.4,3.69862129]
[1672971547479,6.18359887,1250.5,1250.4,1.19862129]
[1672971554938,14.15359887,1250.5,1250.4,1.19862129]
[1672971555354,2.5,1250.4,1250.3,2.5]
[1672971557359,2.5,1250.4,1250.2,4.89467322]
[1672971559253,5.7078,1250.4,1250.2,4.89467322]
[1672971560091,5.7078,1250.4,1250.2,7.88806466]
[1672971560287,5.7078,1250.4,1250.2,4.89467322]
[1672971560520,5.7078,1250.4,1250.2,7.88806466]
[1672971561234,2.97579887,1250.5,1250.3,4.89467322]
[1672971561447,8.68359887,1250.6,1250.4,1.19763556]
[1672971561656,8.68359887,1250.6,1250.4,3.69763556]
[1672971562076,6.18359887,1250.6,1250.5,3.69763556]
[1672971562292,3.2078,1250.6,1250.5,3.69763556]
[1672971562718,6.18359887,1250.6,1250.5,3.69763556]
[1672971562917,3.2078,1250.6,1250.5,5.4939343]
[1672971563130,6.18359887,1250.6,1250.5,3.69763556]
[1672971564924,3.2078,1250.6,1250.5,3.69763556]
[1672971565241,6.18359887,1250.6,1250.5,3.69763556]
[1672971565553,2.97579887,1250.6,1250.5,3.69763556]
[1672971565778,8.68359887,1250.7,1250.5,3.69763556]
[1672971567341,8.68359887,1250.7,1250.5,5.4939343]
[1672971568291,6.18359887,1250.7,1250.5,5.4939343]
[1672971568489,8.68359887,1250.7,1250.5,5.4939343]
[1672971568702,6.18359887,1250.7,1250.5,5.4939343]
[1672971568954,8.68359887,1250.7,1250.5,5.4939343]
[1672971569129,6.18359887,1250.7,1250.5,5.4939343]
[1672971569342,8.68359887,1250.7,1250.5,5.4939343]
[1672971569658,6.18359887,1250.7,1250.5,5.4939343]
[1672971569865,8.68359887,1250.7,1250.5,5.4939343]
[1672971570073,6.18359887,1250.7,1250.5,5.4939343]
[1672971570286,8.68359887,1250.7,1250.5,5.4939343]
[1672971571863,5.47579887,1250.7,1250.5,5.4939343]
[1672971572130,8.68359887,1250.7,1250.5,5.4939343]
[1672971573124,5.47579887,1250.7,1250.5,5.4939343]
[1672971573335,8.68359887,1250.7,1250.5,5.4939343]
[1672971574913,2.97579887,1250.6,1250.5,3.69763556]
[1672971575123,5.47579887,1250.6,1250.5,3.69763556]
[1672971575333,5.47579887,1250.6,1250.5,1.19763556]
[1672971575850,5.47579887,1250.6,1250.4,5.4939343]
[1672971576061,5.7078,1250.5,1250.4,5.4939343]
[1672971576273,3.2078,1250.5,1250.4,4.29629874]
[1672971577015,3.2078,1250.5,1250.4,5.49402009]
[1672971577646,3.2078,1250.5,1250.4,4.29629874]
[1672971578797,3.2078,1250.5,1250.4,1.79629874]
[1672971579005,5.7078,1250.5,1250.4,2.99413635]
[1672971579322,8.68359887,1250.5,1250.4,1.19783761]
[1672971579740,8.68359887,1250.5,1250.4,1.19536304]
[1672971579952,8.68359887,1250.5,1250.4,3.69536304]
[1672971582062,5.47579887,1250.5,1250.4,3.69536304]
[1672971582593,8.68359887,1250.5,1250.4,3.69536304]
[1672971582905,5.47579887,1250.5,1250.4,3.69536304]
[1672971583221,8.68359887,1250.5,1250.4,3.69536304]
[1672971583434,8.68359887,1250.5,1250.4,1.19536304]
[1672971584796,5.47579887,1250.5,1250.4,1.19536304]
[1672971585319,8.68359887,1250.5,1250.4,1.19536304]
[1672971586691,5.47579887,1250.5,1250.4,1.19536304]
[1672971586899,8.68359887,1250.5,1250.4,1.19536304]
[1672971588081,5.47579887,1250.5,1250.4,1.19536304]
[1672971588373,8.68359887,1250.5,1250.4,1.19536304]
[1672971589214,5.47579887,1250.5,1250.4,1.19536304]
[1672971589423,8.68359887,1250.5,1250.4,1.19536304]
[1672971590476,8.68359887,1250.5,1250.3,4.29629874]
[1672971592049,5.47579887,1250.5,1250.3,4.29629874]
[1672971592404,8.68359887,1250.5,1250.3,4.29629874]
[1672971593100,5.47579887,1250.5,1250.3,4.29629874]
[1672971593311,8.68359887,1250.5,1250.3,4.29629874]
[1672971594359,5.47579887,1250.5,1250.3,4.29629874]
[1672971594783,8.68359887,1250.5,1250.3,4.29629874]
[1672971595827,5.47579887,1250.5,1250.3,4.29629874]
[1672971596043,8.68359887,1250.5,1250.3,4.29629874]
[1672971596463,5.47579887,1250.5,1250.3,4.29629874]
[1672971596884,8.68359887,1250.5,1250.3,4.29629874]
[1672971597199,5.47579887,1250.5,1250.3,4.29629874]
[1672971597514,8.68359887,1250.5,1250.3,4.29629874]
[1672971598143,5.47579887,1250.5,1250.3,4.29629874]
[1672971598353,8.68359887,1250.5,1250.3,4.29629874]
[1672971600038,8.68359887,1250.5,1250.3,1.79629874]
[1672971600346,2.5,1250.4,1250.3,1.79629874]
[1672971601085,5.47579887,1250.4,1250.3,1.79629874]
[1672971601496,5.47579887,1250.4,1250.2,6.69097196]
[1672971601714,5.47579887,1250.4,1250.3,2.5]
[1672971602460,8.68359887,1250.4,1250.3,4.29629874]
[1672971602874,8.68359887,1250.4,1250.3,2.5]
[1672971603400,5.7078,1250.4,1250.3,2.5]
[1672971603919,5.7078,1250.4,1250.3,4.29629874]
[1672971604133,3.2078,1250.4,1250.3,2.5]
[1672971604336,3.2078,1250.4,1250.3,4.29629874]
[1672971604972,3.2078,1250.4,1250.3,1.79629874]
[1672971605184,6.18359887,1250.4,1250.2,1.79629874]
[1672971605604,2.5,1250.3,1250.2,4.29629874]
[1672971607394,2.5,1250.3,1250.2,1.79629874]
[1672971607919,5.47579887,1250.3,1250.1,4.29629874]
[1672971608648,2.5,1250.3,1250.1,4.29629874]
[1672971609335,2.5,1250.3,1250.1,6.69097196]
[1672971610855,6.18359887,1250.4,1250.1,6.69097196]
[1672971611180,2.5,1250.3,1250.1,6.69097196]
[1672971612436,2.5,1250.3,1250.2,2.5]
[1672971612647,2.5,1250.3,1250.2,4.29629874]
[1672971612961,2.5,1250.3,1250.2,2.5]
[1672971613169,5.47579887,1250.3,1250.1,4.29629874]
[1672971613380,2.5,1250.3,1250.1,6.69097196]
[1672971613590,2.5,1250.3,1250.2,2.5]
[1672971613794,6.18359887,1250.4,1250.2,4.29629874]
[1672971615377,2.5,1250.3,1250.2,4.29629874]
[1672971615588,2.5,1250.3,1250.2,2.5]
[1672971615792,5.47579887,1250.3,1250.2,2.5]
[1672971616115,2.5,1250.3,1250.2,2.5]
[1672971616529,6.18359887,1250.4,1250.2,4.29629874]
[1672971619268,2.97579887,1250.4,1250.2,4.29629874]
[1672971619579,3.2078,1250.3,1250.2,4.29629874]
[1672971619796,5.7078,1250.3,1250.2,4.29629874]
[1672971620738,3.2078,1250.3,1250.2,4.29629874]
[1672971621258,6.18359887,1250.4,1250.2,4.29629874]
[1672971621468,2.5,1250.3,1250.2,4.29629874]
[1672971622840,2.5,1250.3,1250.2,1.79629874]
[1672971623471,5.47579887,1250.3,1250.2,1.79629874]
[1672971624309,2.5,1250.3,1250.2,1.79629874]
[1672971624519,6.18359887,1250.4,1250.2,1.79629874]
[1672971624835,2.5,1250.3,1250.2,1.79629874]
[1672971625256,5.7078,1250.3,1250.2,1.79629874]
[1672971626244,8.68359887,1250.3,1250.2,1.79629874]
[1672971626727,5.7078,1250.3,1250.2,1.79629874]
[1672971627039,8.68359887,1250.3,1250.1,1.79629874]
[1672971627991,8.68359887,1250.3,1250.1,4.19097196]
[1672971628941,8.68359887,1250.3,1250.1,6.69097196]
[1672971629360,8.68359887,1250.3,1250.1,4.19097196]
[1672971631358,8.68359887,1250.3,1250.1,6.69097196]
[1672971632716,8.68359887,1250.3,1250.2,1.79629874]
[1672971632927,8.68359887,1250.3,1250.2,4.29629874]
[1672971633457,8.68359887,1250.3,1250.1,6.69097196]
[1672971633667,8.68359887,1250.3,1250.2,1.79629874]
[1672971633875,6.18359887,1250.3,1250.2,4.29629874]
[1672971634087,8.68359887,1250.3,1250.2,4.29629874]
[1672971635142,8.68359887,1250.3,1250.2,1.79629874]
[1672971635665,8.68359887,1250.3,1250.1,6.69097196]
[1672971636082,8.68359887,1250.3,1250.2,4.29629874]
[1672971636495,6.18359887,1250.3,1250.2,4.29629874]
[1672971636717,2.97579887,1250.3,1250.2,4.29629874]
[1672971636926,6.18359887,1250.3,1250.2,4.29629874]
[1672971637347,8.68359887,1250.3,1250.2,1.79629874]
[1672971637560,6.18359887,1250.3,1250.2,1.79629874]
[1672971637763,8.68359887,1250.3,1250.2,1.79629874]
[1672971638503,6.18359887,1250.3,1250.2,1.79629874]
[1672971638947,8.68359887,1250.3,1250.2,1.79629874]
[1672971639870,8.68450742,1250.3,1250.2,1.79629874]
[1672971640606,6.18450742,1250.3,1250.2,1.79629874]
[1672971641344,8.68450742,1250.3,1250.2,1.79629874]
[1672971644389,5.7078,1250.3,1250.2,1.79629874]
[1672971648181,2.5,1250.3,1250.2,1.79629874]
[1672971648408,5.7078,1250.3,1250.2,1.79629874]
[1672971650284,2.5,1250.3,1250.2,1.79629874]
[1672971650510,5.7078,1250.3,1250.2,1.79629874]
[1672971652175,2.5,1250.3,1250.2,1.79629874]
[1672971652389,5.7078,1250.3,1250.2,1.79629874]
[1672971652697,8.68523266,1250.3,1250.2,1.79629874]
[1672971652908,8.68519779,1250.3,1250.2,1.79629874]
[1672971653549,5.7078,1250.3,1250.2,1.79629874]
[1672971653865,8.68521297,1250.3,1250.2,1.79629874]
[1672971654070,8.68521297,1250.3,1250.2,1.7911955]
[1672971654591,5.47741297,1250.3,1250.2,1.7911955]
[1672971654804,8.68521297,1250.3,1250.2,1.7911955]
[1672971657124,5.47741297,1250.3,1250.2,1.7911955]
[1672971657326,8.68521297,1250.3,1250.2,1.7911955]
[1672971659222,5.7078,1250.3,1250.2,1.7911955]
[1672971662682,2.5,1250.3,1250.2,1.7911955]
[1672971663158,5.7078,1250.3,1250.2,1.7911955]
[1672971663748,5.7078,1250.3,1250.1,4.89467322]
[1672971663945,6.18592019,1250.2,1250.1,4.89467322]
[1672971664588,2.97812019,1250.2,1250.1,4.89467322]
[1672971664799,6.18592019,1250.2,1250.1,2.39467322]
[1672971667730,11.1778,1250.2,1250.0,2.39467322]
[1672971667944,5.47785923,1250.1,1249.9,5.38806466]
[1672971668266,6.18565923,1250.0,1249.9,2.39467322]
[1672971668479,6.18565923,1250.0,1249.8,5.38806466]
[1672971668688,2.5,1249.9,1249.8,2.39467322]
[1672971668901,2.5,1249.9,1249.8,3.81282778]
[1672971669213,2.5,1249.9,1249.8,2.39467322]
[1672971669427,2.5,1249.9,1249.7,7.88806466]
[1672971670474,2.5,1249.9,1249.8,2.39467322]
[1672971670680,2.5,1249.9,1249.8,2.5]
[1672971672163,2.5,1249.9,1249.7,4.89467322]
[1672971672363,2.5,1249.9,1249.8,2.5]
[1672971675124,2.5,1249.9,1249.7,4.89467322]
[1672971679428,2.5,1249.9,1249.7,2.5]
[1672971680799,2.5,1249.9,1249.7,4.89467322]
[1672971688282,3.2078,1250.0,1249.7,4.89467322]
[1672971688802,2.5,1249.9,1249.7,4.89467322]
[1672971695719,2.5,1249.9,1249.7,2.39467322]
[1672971696133,2.5,1249.9,1249.7,3.81285705]
[1672971697714,2.5,1249.9,1249.7,6.31285705]
[1672971697927,2.5,1249.9,1249.7,4.89467322]
[1672971698875,2.5,1249.9,1249.7,9.30623363]
[1672971699077,2.5,1249.9,1249.7,7.88806466]
[1672971699493,2.5,1249.9,1249.7,5.38806466]
[1672971699715,2.5,1249.9,1249.7,6.8062459]
[1672971700659,2.5,1249.9,1249.7,5.38806466]
[1672971700868,2.5,1249.9,1249.7,6.80624911]
[1672971702237,2.5,1249.9,1249.7,2.39467322]
[1672971702448,2.5,1249.9,1249.8,1.19792937]
[1672971702761,10.47,1249.9,1249.7,2.39467322]
[1672971702971,3.2078,1249.8,1249.6,4.89467322]
[1672971703284,2.5,1249.7,1249.6,4.89467322]
[1672971703496,2.5,1249.7,1249.6,6.91172131]
[1672971703708,5.47785923,1249.9,1249.6,6.91172131]
[1672971703907,5.47785923,1249.9,1249.8,1.19844617]
[1672971704124,2.5,1249.9,1249.8,3.69844617]
[1672971704331,5.47785923,1249.9,1249.8,3.69844617]
[1672971704543,2.5,1249.9,1249.8,3.69844617]
[1672971704749,5.47785923,1249.9,1249.8,2.5]
[1672971705283,5.47785923,1249.9,1249.8,1.19899723]
[1672971705487,5.47785923,1249.9,1249.8,3.69899723]
[1672971707599,8.68565923,1249.9,1249.8,3.69899723]
[1672971707913,5.47785923,1249.9,1249.8,3.69899723]
[1672971708122,8.68565923,1249.9,1249.8,3.69899723]
[1672971708648,6.18565923,1249.9,1249.8,3.69899723]
[1672971708860,2.97785923,1250.0,1249.8,6.31505593]
[1672971709068,2.97785923,1250.0,1249.9,2.39689235]
[1672971709270,6.18565923,1250.1,1249.9,2.39689235]
[1672971709588,6.18565923,1250.1,1250.0,3.69937772]
[1672971712328,6.18565923,1250.1,1250.0,2.5]
[1672971712747,6.18565923,1250.1,1250.0,3.69890208]
[1672971714112,6.18565923,1250.1,1250.0,5.4972501]